bitfinex/quotes_BTCUSD_20220303
["timestamp","ask_amount","ask_price","bid_price","bid_amount"]
[1646340426148,0.4151,42065.0,42056.0,0.38601072]
[1646340426346,0.4151,42065.0,42055.0,0.37568345]
[1646340426745,0.001,42062.0,42056.0,0.002]
[1646340428047,0.4941,42065.0,42040.0,0.0011]
[1646340428048,0.7237,42064.0,42046.0,0.38601072]
[1646340428247,0.7237,42064.0,42049.0,8.244e-05]
[1646340428248,0.079,42059.0,42049.0,8.244e-05]
[1646340428701,0.059482,42056.0,42049.0,8.244e-05]
[1646340428902,0.059482,42056.0,42053.0,0.09246916]
[1646340430004,0.059482,42056.0,42054.0,0.21016449]
[1646340430302,0.4494,42057.0,42054.0,0.21016449]
[1646340430505,0.4494,42057.0,42054.0,0.59617521]
[1646340430804,0.4494,42057.0,42054.0,0.59817521]
[1646340431005,0.001,42061.0,42060.0,0.11768989]
[1646340431205,0.001,42061.0,42054.0,0.002]
[1646340431808,0.079,42060.0,42054.0,0.002]
[1646340432239,0.362389,42059.0,42049.0,0.00041118]
[1646340432441,0.118972,42060.0,42049.0,0.00123354]
[1646340432841,0.059486,42058.0,42049.0,0.00082236]
[1646340433039,0.059486,42058.0,42053.0,0.12380251]
[1646340433239,0.05941327,42058.0,42053.0,0.12380251]
[1646340433840,0.05941327,42058.0,42047.0,0.39001072]
[1646340434042,0.118982,42054.0,42047.0,0.004]
[1646340434643,0.362371,42053.0,42047.0,0.004]
[1646340435544,0.06240919,42043.0,42035.0,0.025]
[1646340435746,0.059496,42046.0,42040.0,0.0001]
[1646340435747,0.9452,42041.0,42040.0,0.0001]
[1646340435988,0.9452,42041.0,42031.0,0.0011]
[1646340435989,0.7237,42038.0,42031.0,0.0011]
[1646340436189,0.9,42040.0,42031.0,0.0011]
[1646340436190,0.8027,42036.0,42031.0,0.0011]
[1646340436388,0.7237,42034.0,42031.0,0.0011]
[1646340436590,1.13339072,42033.0,42032.0,8.227e-05]
[1646340436989,0.257579,42034.0,42032.0,8.227e-05]
[1646340436990,0.198052,42034.0,42032.0,8.227e-05]
[1646340437191,0.119052,42034.0,42032.0,0.00016454]
[1646340437388,0.119052,42034.0,42032.0,0.00024681]
[1646340437591,0.119052,42034.0,42032.0,0.00016454]
[1646340437791,0.119052,42034.0,42032.0,8.227e-05]
[1646340437988,0.119052,42034.0,42031.0,0.0011]
[1646340438891,0.123052,42034.0,42031.0,0.0011]
[1646340439293,0.202052,42034.0,42031.0,0.0011]
[1646340439492,0.123052,42034.0,42031.0,0.0011]
[1646340439734,0.079,42033.0,42031.0,0.0011]
[1646340440137,0.74738,42032.0,42031.0,0.0011]
[1646340441035,0.75038,42032.0,42031.0,0.0011]
[1646340441240,0.02368,42030.0,42027.0,0.001]
[1646340441439,0.02368,42030.0,42024.0,0.0011]
[1646340441440,0.7237,42025.0,42024.0,0.0011]
[1646340441636,1.56713914,42025.0,42024.0,0.0011]
[1646340441838,1.7649122,42025.0,42024.0,0.0011]
[1646340442035,1.01268,42025.0,42024.0,0.0011]
[1646340442235,0.0438,42025.0,42024.0,0.0011]
[1646340442836,0.0478,42025.0,42024.0,0.0011]
[1646340443037,0.004,42025.0,42024.0,0.0011]
[1646340443238,1.113751,42025.0,42024.0,0.0011]
[1646340443489,0.004,42025.0,42024.0,0.0011]
[1646340444096,0.119059,42026.0,42024.0,0.0011]
[1646340444294,0.059514,42030.0,42026.0,0.004936]
[1646340444595,0.059514,42030.0,42026.0,0.004935]
[1646340444993,0.5088922,42033.0,42026.0,0.004935]
[1646340445193,0.5088922,42033.0,42026.0,8.208e-05]
[1646340445194,0.11904,42032.0,42026.0,8.208e-05]
[1646340445393,0.059514,42031.0,42027.0,0.004932]
[1646340445595,0.004,42035.0,42027.0,0.19104827]
[1646340446193,0.257572,42038.0,42029.0,0.13072282]
[1646340446393,0.059506,42035.0,42024.0,0.0011]
[1646340446594,0.142717,42033.0,42024.0,0.0011]
[1646340446895,0.079,42032.0,42024.0,0.0011]
[1646340447097,0.079,42032.0,42013.0,0.35144905]
[1646340447098,0.50571803,42014.0,42013.0,0.35144905]
[1646340447343,0.50571803,42014.0,42013.0,1.28178535]
[1646340447541,0.50571803,42014.0,42013.0,1.41236956]
[1646340447742,0.50571803,42014.0,42013.0,1.26236956]
[1646340448341,0.50571803,42014.0,42013.0,1.23351304]
[1646340448541,0.50424514,42014.0,42013.0,1.23351304]
[1646340448742,0.50424514,42014.0,42013.0,1.06092051]
[1646340448944,0.50424514,42014.0,42013.0,0.84464421]
[1646340449844,0.50424514,42014.0,42013.0,0.87210286]
[1646340450042,0.50424514,42014.0,42013.0,1.08241805]
[1646340450546,0.50424514,42014.0,42013.0,0.71406]
[1646340450991,0.50524514,42014.0,42013.0,0.71406]
[1646340451590,0.89130714,42014.0,42013.0,0.71406]
[1646340451797,0.89130714,42014.0,42013.0,0.356722]
[1646340451798,2.08214154,42014.0,42013.0,0.356722]
[1646340451991,2.08214154,42014.0,42010.0,0.0011]
[1646340451992,2.152262,42013.0,42010.0,0.0011]
[1646340452191,1.4742164,42012.0,42010.0,0.0011]
[1646340452591,1.1118344,42012.0,42011.0,0.00438149]
[1646340452792,0.0438,42013.0,42011.0,0.00438149]
[1646340453193,0.0438,42013.0,42011.0,0.00454447]
[1646340453592,0.0438,42013.0,42011.0,0.00438149]
[1646340453793,0.083232,42010.0,42005.0,0.0011]
[1646340453992,0.083232,42010.0,42003.0,0.0043]
[1646340453993,0.79717709,42005.0,42003.0,0.0043]
[1646340454193,1.83399349,42005.0,42003.0,0.0043]
[1646340454399,1.83399349,42005.0,41997.0,0.0011]
[1646340454400,0.362382,42001.0,41997.0,0.0011]
[1646340454594,0.88988,41998.0,41997.0,0.0011]
[1646340454847,0.88988,41995.0,41983.0,0.0021]
[1646340455050,0.74738,41992.0,41983.0,0.0021]
[1646340455243,0.794677,41992.0,41983.0,0.0021]
[1646340455444,0.794677,41992.0,41984.0,0.11233653]
[1646340455445,0.059577,41992.0,41984.0,0.11233653]
[1646340455645,0.3881344,41991.0,41984.0,0.11233653]
[1646340455845,1.1714114,41992.0,41991.0,0.13917192]
[1646340456044,0.4477114,41992.0,41991.0,0.13917192]
[1646340456246,0.059577,41992.0,41991.0,0.13917192]
[1646340456546,0.059577,41992.0,41983.0,0.0021]
[1646340456547,0.7237,41990.0,41983.0,0.0021]
[1646340456746,1.2543344,41989.0,41983.0,0.0021]
[1646340456947,1.1118344,41989.0,41983.0,0.0021]
[1646340457146,0.7237,41989.0,41983.0,0.0021]
[1646340457347,0.8027,41985.0,41983.0,0.0021]
[1646340457551,0.079,41980.0,41969.0,0.0032]
[1646340458145,0.10268,41980.0,41969.0,0.0032]
[1646340458346,0.054596,41981.0,41980.0,0.00032538]
[1646340458594,0.059585,41982.0,41980.0,0.00097614]
[1646340458791,0.059585,41982.0,41980.0,0.00065076]
[1646340458991,0.119172,41984.0,41969.0,0.0032]
[1646340458992,0.6443,41987.0,41969.0,0.0032]
[1646340459194,0.02368,41986.0,41969.0,0.0032]
[1646340459396,0.119205,41978.0,41969.0,0.0032]
[1646340459596,0.079,41973.0,41961.0,0.000877]
[1646340459794,0.079,41973.0,41965.0,0.12328005]
[1646340459991,0.138602,41973.0,41965.0,0.11328005]
[1646340460392,0.138602,41973.0,41970.0,0.00032546]
[1646340460592,0.138602,41973.0,41970.0,0.00097638]
[1646340460593,0.079,41971.0,41970.0,0.00097638]
[1646340460792,0.079,41971.0,41970.0,0.00065092]
[1646340460793,0.5109344,41971.0,41970.0,0.00065092]
[1646340460992,0.5109344,41971.0,41970.0,0.00032546]
[1646340460993,0.0438,41971.0,41970.0,0.00032546]
[1646340461192,0.05961,41969.0,41961.0,0.000877]
[1646340461397,0.05961,41969.0,41960.0,0.0002]
[1646340461398,0.01094345,41966.0,41960.0,0.11322935]
[1646340461597,0.182425,41966.0,41960.0,0.11322935]
[1646340461796,0.222679,41966.0,41960.0,0.11322935]
[1646340462096,0.0438,41969.0,41962.0,0.00032308]
[1646340462345,1.11272753,41980.0,41968.0,0.00016152]
[1646340462545,0.5465,41980.0,41971.0,0.12581054]
[1646340462749,0.09127039,41981.0,41971.0,0.12581054]
[1646340462750,0.0438,41979.0,41971.0,0.12081054]
[1646340463346,0.05959,41978.0,41971.0,0.12081054]
[1646340463648,0.119183,41978.0,41971.0,0.12081054]
[1646340464050,0.0438,41977.0,41972.0,0.3881344]
[1646340464250,0.0438,41977.0,41971.0,0.12081054]
[1646340464646,0.0438,41977.0,41971.0,0.27719376]
[1646340464849,0.0438,41977.0,41971.0,0.12081054]
[1646340465049,0.0458,41977.0,41971.0,0.12081054]
[1646340465252,0.0458,41977.0,41971.0,0.07372899]
[1646340465450,0.002,41977.0,41972.0,8.027e-05]
[1646340466090,0.002,41977.0,41976.0,0.18503253]
[1646340466290,0.138587,41982.0,41981.0,0.11150191]
[1646340466490,0.138587,41982.0,41972.0,0.00016054]
[1646340466691,0.138587,41982.0,41962.0,0.36754381]
[1646340466692,0.059587,41982.0,41962.0,0.36754381]
[1646340466890,0.131093,41984.0,41968.0,0.02368]
[1646340466891,0.01191,41984.0,41968.0,0.02368]
[1646340467091,0.05958,41986.0,41975.0,8.026e-05]
[1646340467291,0.05958,41986.0,41985.0,0.17538258]
[1646340467492,0.005,41987.0,41985.0,0.17538258]
[1646340467493,0.005,41987.0,41986.0,0.11668054]
[1646340468192,0.05957,41994.0,41986.0,0.11668054]
[1646340468395,0.5119,41995.0,41993.0,0.11355754]
[1646340468592,0.059565,41997.0,41993.0,0.11355754]
[1646340469393,0.054565,41997.0,41993.0,0.11355754]
[1646340469591,0.28381712,42002.0,41993.0,0.11355754]
[1646340469592,0.28381712,42002.0,41994.0,0.20485174]
[1646340469843,0.579,42003.0,41994.0,0.20485174]
[1646340469844,0.5,42003.0,42000.0,0.11131694]
[1646340470144,0.5,42003.0,42000.0,0.07044219]
[1646340470343,0.5,42003.0,41994.0,0.20485174]
[1646340470542,0.5,42003.0,41992.0,0.38639914]
[1646340470543,0.52368,42003.0,41992.0,0.38639914]
[1646340470742,0.52368,42003.0,41980.0,0.15]
[1646340470743,0.5,42003.0,41999.0,8.001e-05]
[1646340470943,0.059567,42003.0,41994.0,0.003]
[1646340471141,0.059567,42003.0,41999.0,8.001e-05]
[1646340471142,0.138567,42003.0,41999.0,8.001e-05]
[1646340471341,0.138567,42003.0,41999.0,0.00016002]
[1646340471740,0.138567,42003.0,41999.0,8.001e-05]
[1646340471941,0.138567,42003.0,41994.0,0.003]
[1646340471942,0.178702,42002.0,41994.0,0.003]
[1646340472142,0.178702,42002.0,41999.0,0.11666612]
[1646340472341,0.178702,42002.0,41984.0,0.06748]
[1646340472543,0.119135,42002.0,41984.0,0.06748]
[1646340472745,0.059567,42003.0,41998.0,0.19201695]
[1646340472945,0.059567,42003.0,41986.0,0.02368]
[1646340473243,0.059567,42003.0,41998.0,0.11646877]
[1646340473514,0.0119,42005.0,41998.0,0.11646877]
[1646340473715,0.0119,42008.0,41998.0,0.11646877]
[1646340473914,0.079,42010.0,41998.0,0.11646877]
[1646340474115,0.079,42010.0,42000.0,0.18812982]
[1646340474515,0.059553,42006.0,42000.0,0.18812982]
[1646340474713,0.059553,42006.0,41999.0,0.00016002]
[1646340474714,0.119105,42006.0,41999.0,0.00024003]
[1646340474918,0.119131,42004.0,41999.0,0.00024003]
[1646340475117,0.119131,42004.0,41999.0,8.001e-05]
[1646340475313,0.119131,42004.0,41992.0,0.18524205]
[1646340475517,0.059558,42002.0,41985.0,0.15]
[1646340475715,0.059558,42002.0,41999.0,8.001e-05]
[1646340476115,0.059558,42002.0,41999.0,0.00016002]
[1646340476315,0.059558,42002.0,41996.0,0.10880253]
[1646340476715,0.059558,42002.0,41996.0,0.10380253]
[1646340476918,0.059553,42006.0,42000.0,0.16184802]
[1646340477116,0.059553,42006.0,41996.0,0.10380253]
[1646340477344,0.059553,42005.0,41996.0,0.10380253]
[1646340478143,0.059553,42005.0,41997.0,0.17000427]
[1646340478340,0.059553,42005.0,41996.0,0.10380253]
[1646340478940,0.059553,42005.0,41997.0,7.942e-05]
[1646340479342,0.059553,42005.0,41998.0,0.19437045]
[1646340479542,0.44601918,42005.0,41997.0,0.00015884]
[1646340479744,0.05956,42004.0,41997.0,0.00015884]
[1646340479945,0.178687,42004.0,41997.0,0.00015884]
[1646340480144,0.178687,42004.0,41996.0,0.09878195]
[1646340480344,0.178687,42004.0,41983.0,0.15]
[1646340480345,0.059562,42002.0,41983.0,0.15]
[1646340480549,0.362382,41998.0,41977.0,0.02368]
[1646340480752,0.38646618,41997.0,41977.0,0.02368]
[1646340480998,0.059581,41993.0,41977.0,0.02368]
[1646340481198,0.059581,41993.0,41975.0,1.26861046]
[1646340481401,0.059581,41993.0,41973.0,0.15119124]
[1646340481402,0.05958,41990.0,41978.0,0.12120145]
[1646340481601,0.4320273,41989.0,41973.0,0.00119124]
[1646340481800,0.4557073,41989.0,41973.0,0.00119124]
[1646340482000,0.10268,41987.0,41973.0,0.00119124]
[1646340482200,0.41014618,41986.0,41968.0,0.21324267]
[1646340482400,0.079,41983.0,41962.0,0.025]
[1646340482599,0.41014618,41986.0,41974.0,0.10520944]
[1646340482600,0.059592,41981.0,41974.0,0.10520944]
[1646340482998,0.059592,41981.0,41962.0,0.02368]
[1646340483201,0.059593,41978.0,41962.0,0.02368]
[1646340483404,0.059593,41978.0,41961.0,0.2499]
[1646340483601,0.38646618,41977.0,41961.0,0.2499]
[1646340483799,0.10268,41982.0,41963.0,0.02368]
[1646340483800,0.01191,41982.0,41963.0,0.02368]
[1646340484005,0.38646618,41988.0,41976.0,0.10329585]
[1646340484201,0.04747039,41990.0,41976.0,0.10329585]
[1646340484601,0.04747039,41990.0,41967.0,0.00015854]
[1646340484602,0.059581,41988.0,41967.0,0.00015854]
[1646340484844,0.10268,41984.0,41967.0,0.00023781]
[1646340485041,0.02368,41981.0,41967.0,0.00015854]
[1646340485244,0.059589,41982.0,41962.0,0.15]
[1646340485741,0.059589,41982.0,41969.0,0.09390672]
[1646340485944,0.059589,41982.0,41970.0,7.927e-05]
[1646340485945,0.059592,41980.0,41970.0,7.927e-05]
[1646340486140,0.059589,41982.0,41970.0,7.927e-05]
[1646340486342,0.054589,41982.0,41970.0,0.00015854]
[1646340486541,0.054589,41982.0,41970.0,0.00023781]
[1646340486943,0.054589,41982.0,41976.0,0.12804194]
[1646340487344,0.054589,41982.0,41981.0,0.16834978]
[1646340487544,0.01191,41988.0,41987.0,0.09315075]
[1646340487743,0.119159,41989.0,41982.0,0.16376699]
[1646340487950,0.0119,41993.0,41985.0,0.20736959]
[1646340488145,1.128163,41994.0,41985.0,0.20736959]
[1646340488146,0.568541,41994.0,41985.0,0.20736959]
[1646340488348,0.4494,41994.0,41985.0,0.20736959]
[1646340488598,0.4494,41994.0,41992.0,0.16187578]
[1646340488795,0.592,42003.0,41993.0,0.10572082]
[1646340488796,0.519,42003.0,41993.0,0.10572082]
[1646340488994,0.5284,42004.0,41995.0,0.19694684]
[1646340489192,0.0119,42003.0,42000.0,0.10912416]
[1646340489393,0.5284,42004.0,42000.0,0.10912416]
[1646340489394,0.4494,42004.0,42000.0,0.10912416]
[1646340489592,0.520852,42004.0,42000.0,0.10912416]
[1646340489795,0.508952,42004.0,42000.0,0.10912416]
[1646340490395,9.0,41993.0,41985.0,0.4023785]
[1646340490594,9.0,41993.0,41989.0,0.02745865]
[1646340490796,9.0,41993.0,41992.0,0.02745865]
[1646340491398,9.0,41993.0,41988.0,0.11089188]
[1646340492243,9.0,41993.0,41988.0,0.30177174]
[1646340492440,9.0,41993.0,41988.0,0.11089188]
[1646340492841,9.0,41993.0,41983.0,0.0119]
[1646340493043,0.059569,41991.0,41983.0,0.003]
[1646340493242,0.059569,41991.0,41988.0,7.904e-05]
[1646340493642,0.119155,41990.0,41988.0,7.904e-05]
[1646340493845,0.119155,41990.0,41988.0,0.00015808]
[1646340494043,0.4342985,41989.0,41988.0,0.00023712]
[1646340494244,0.9,41988.0,41982.0,0.16439939]
[1646340494442,0.241977,41987.0,41982.0,0.16408319]
[1646340494642,0.119175,41986.0,41982.0,0.16376699]
[1646340494844,0.0119,41986.0,41982.0,0.16376699]
[1646340495044,9.11627039,41993.0,41982.0,0.2775632]
[1646340495045,0.004,41987.0,41982.0,0.2775632]
[1646340495443,0.004,41987.0,41983.0,0.2051371]
[1646340495643,0.004,41987.0,41982.0,0.2775632]
[1646340496493,0.059587,41989.0,41982.0,0.2775632]
[1646340496888,0.059587,41989.0,41984.0,0.15689885]
[1646340497090,0.002,41992.0,41984.0,0.15689885]
[1646340497291,0.002,41992.0,41989.0,0.12458597]
[1646340497892,0.002,41992.0,41991.0,0.18590406]
[1646340498395,9.0,41993.0,41991.0,0.02745865]
[1646340498592,9.0,41993.0,41989.0,0.12458597]
[1646340498997,9.0,41993.0,41991.0,0.005]
[1646340500264,9.0,41993.0,41989.0,0.12458597]
[1646340500663,9.0,41993.0,41990.0,0.16344774]
[1646340500865,0.4494,42007.0,41990.0,0.16344774]
[1646340500866,0.4494,42007.0,41992.0,0.20113865]
[1646340501065,0.4494,42007.0,41992.0,0.19868]
[1646340501264,0.4494,42007.0,41992.0,0.04868]
[1646340501463,0.4494,42007.0,41995.0,0.02368]
[1646340501667,0.4361,42009.0,41995.0,0.02368]
[1646340501668,0.195,42009.0,41995.0,0.02368]
[1646340501864,0.195,42009.0,42006.0,0.20506207]
[1646340502063,0.195,42009.0,41995.0,0.02368]
[1646340502064,0.19,42009.0,41995.0,0.02368]
[1646340502265,0.56378114,42014.0,41995.0,0.17368]
[1646340502564,0.56378114,42014.0,41997.0,0.02368]
[1646340502565,0.059538,42013.0,41997.0,0.02368]
[1646340502865,0.059538,42013.0,41999.0,0.02368]
[1646340503164,0.059538,42013.0,42007.0,0.02368]
[1646340503364,0.059538,42013.0,41998.0,0.0438]
[1646340503365,0.11942745,42013.0,41998.0,0.0438]
[1646340503803,0.51739984,42017.0,41998.0,0.0438]
[1646340503804,6.28e-06,42017.0,42009.0,0.15]
[1646340503999,6.28e-06,42017.0,42015.0,1.15]
[1646340504205,6.28e-06,42017.0,42016.0,1.46580784]
[1646340504399,6.28e-06,42017.0,42016.0,2.17981784]
[1646340504600,6.28e-06,42017.0,42016.0,2.36720162]
[1646340504800,0.4097,42041.0,42018.0,0.74738]
[1646340505000,0.4097,42041.0,42026.0,1.02368]
[1646340505203,0.4097,42041.0,42030.0,0.02368]
[1646340505401,0.4097,42041.0,42032.0,0.17368]
[1646340505604,0.4097,42041.0,42034.0,0.02368]
[1646340505803,0.4097,42041.0,42036.0,0.02368]
[1646340506005,0.4097,42041.0,42039.0,0.02368]
[1646340506201,0.16459823,42051.0,42040.0,0.73729]
[1646340506402,0.518574,42063.0,42042.0,0.02368]
[1646340506403,0.01188,42062.0,42042.0,0.02368]
[1646340506604,0.01188,42062.0,42042.0,0.06748]
[1646340507001,0.22661528,42062.0,42044.0,0.02368]
[1646340507266,0.01188,42062.0,42046.0,0.02368]
[1646340507566,0.10254873,42064.0,42048.0,0.02368]
[1646340507765,0.10254873,42064.0,42050.0,0.02368]
[1646340507766,0.17378579,42059.0,42050.0,0.02368]
[1646340507969,0.00015684,42055.0,42045.0,0.0438]
[1646340508166,0.00047052,42055.0,42045.0,0.0438]
[1646340508666,0.12493061,42052.0,42045.0,0.0438]
[1646340508866,0.39736286,42058.0,42045.0,0.0438]
[1646340509065,0.39736286,42058.0,42045.0,0.0488]
[1646340509470,0.17378579,42059.0,42045.0,0.0488]
[1646340509670,0.52820386,42062.0,42046.0,0.3740926]
[1646340509671,0.01188,42062.0,42046.0,0.3740926]
[1646340509868,0.00016322,42054.0,42048.0,0.02368]
[1646340510070,0.00048966,42054.0,42048.0,0.02368]
[1646340510269,0.00048966,42054.0,42045.0,0.0488]
[1646340510270,0.00048966,42054.0,42045.0,0.0438]
[1646340510470,0.00032644,42054.0,42046.0,1.55921976]
[1646340510670,0.39736286,42067.0,42047.0,0.0438]
[1646340510870,0.555,42077.0,42049.0,0.02368]
[1646340510871,0.40924286,42076.0,42049.0,0.02368]
[1646340511114,0.40924286,42076.0,42051.0,0.02008]
[1646340511311,0.40924286,42076.0,42052.0,0.0438]
[1646340511512,0.40924286,42076.0,42047.0,0.118919]
[1646340511513,0.10586017,42062.0,42053.0,0.0438]
[1646340511716,0.10586017,42062.0,42046.0,0.03418917]
[1646340511717,0.00032644,42052.0,42046.0,0.03418917]
[1646340511915,0.00048966,42052.0,42050.0,0.02745865]
[1646340512113,0.00032644,42052.0,42051.0,0.02745865]
[1646340512311,0.00016322,42052.0,42051.0,0.02745865]
[1646340512515,0.56591581,42061.0,42051.0,0.05113865]
[1646340512516,0.16855295,42061.0,42051.0,0.05113865]
[1646340512714,0.10586017,42062.0,42049.0,0.0438]
[1646340512915,0.10586017,42062.0,42053.0,0.05113865]
[1646340513113,0.01188,42071.0,42057.0,0.02745865]
[1646340513313,0.079,42074.0,42051.0,0.005]
[1646340513513,0.079,42074.0,42052.0,0.0438]
[1646340513514,0.00016316,42058.0,42052.0,0.0438]
[1646340513717,0.00048948,42058.0,42056.0,0.02745865]
[1646340513913,0.00048948,42058.0,42057.0,0.09493865]
[1646340514113,0.00048948,42058.0,42057.0,0.49060437]
[1646340514114,0.00016316,42058.0,42057.0,0.49060437]
[1646340514312,0.11375598,42068.0,42057.0,0.49060437]
[1646340514513,0.21132481,42071.0,42057.0,0.52259872]
[1646340514759,0.20755167,42067.0,42060.0,0.19966455]
[1646340514956,0.20755167,42067.0,42057.0,0.52259872]
[1646340514957,0.20755167,42067.0,42058.0,0.39566572]
[1646340515158,0.00032632,42060.0,42057.0,0.0438]
[1646340515356,0.00048948,42060.0,42059.0,0.02745865]
[1646340515557,0.00048948,42060.0,42053.0,0.71339]
[1646340515756,0.09777739,42058.0,42053.0,0.71339]
[1646340515956,0.01188,42071.0,42053.0,0.71339]
[1646340515957,0.01188,42070.0,42054.0,0.41934572]
[1646340516157,0.079,42073.0,42054.0,0.41934572]
[1646340516357,0.01188,42072.0,42062.0,0.17103125]
[1646340516756,0.01188,42072.0,42054.0,0.41934572]
[1646340516956,0.01188,42072.0,42056.0,0.02368]
[1646340517265,0.00030058,42064.0,42059.0,0.02368]
[1646340517457,0.39566572,42083.0,42068.0,0.00060116]
[1646340517660,0.16126674,42081.0,42068.0,0.06808116]
[1646340518056,0.16126674,42081.0,42069.0,0.05943446]
[1646340518057,0.13127914,42074.0,42069.0,0.05943446]
[1646340518257,0.13127914,42074.0,42068.0,0.06808116]
[1646340518690,0.13127914,42074.0,42070.0,0.17872369]
[1646340518891,0.13127914,42074.0,42068.0,0.04440116]
[1646340519896,0.05788963,42070.0,42068.0,0.04440116]
[1646340520093,0.1602674,42071.0,42068.0,0.04440116]
[1646340520094,0.1602674,42071.0,42069.0,0.02745865]
[1646340520291,0.1602674,42071.0,42068.0,0.00060116]
[1646340520993,0.079,42069.0,42068.0,0.00060116]
[1646340521394,0.17328083,42070.0,42068.0,0.00060116]
[1646340521593,0.7,42069.0,42050.0,0.26450666]
[1646340522096,0.20834719,42061.0,42051.0,0.00032263]
[1646340522355,0.20834719,42061.0,42051.0,0.00096789]
[1646340522656,0.20834719,42061.0,42051.0,0.00064526]
[1646340522852,0.059468,42066.0,42051.0,0.00032263]
[1646340523053,0.5636,42068.0,42055.0,0.02745865]
[1646340523254,0.09088,42074.0,42059.0,0.16111731]
[1646340523452,0.059456,42076.0,42060.0,0.3941895]
[1646340523453,0.079,42070.0,42060.0,0.3941895]
[1646340523655,0.02368,42072.0,42060.0,0.3941895]
[1646340523855,0.20094224,42069.0,42060.0,0.3941895]
[1646340524056,0.09088,42075.0,42064.0,0.02368]
[1646340524057,0.01188,42075.0,42064.0,0.02368]
[1646340524258,0.01188,42083.0,42071.0,0.16248851]
[1646340524555,0.16167588,42078.0,42065.0,0.0438]
[1646340524955,0.0997273,42067.0,42065.0,0.0438]
[1646340525161,0.0997273,42067.0,42066.0,0.02745865]
[1646340525558,0.30153216,42067.0,42066.0,0.02745865]
[1646340525757,0.30153216,42067.0,42056.0,0.2499]
[1646340525993,0.30679447,42067.0,42056.0,0.2499]
[1646340526197,0.0997273,42067.0,42056.0,0.2499]
[1646340526994,0.16775321,42066.0,42056.0,0.2499]
[1646340527194,0.16791598,42066.0,42056.0,0.315354]
[1646340527395,0.16807875,42066.0,42056.0,0.2559]
[1646340527595,0.16824152,42066.0,42056.0,0.006]
[1646340527901,0.079,42060.0,42056.0,0.006]
[1646340528094,0.16942768,42059.0,42056.0,0.006]
[1646340528294,0.16942768,42059.0,42041.0,0.47200312]
[1646340528497,0.16942768,42059.0,42041.0,0.2449]
[1646340528695,0.0985369,42055.0,42041.0,0.2449]
[1646340528895,0.0985369,42055.0,42042.0,0.02368]
[1646340529196,0.0985369,42055.0,42049.0,0.00016214]
[1646340529197,0.1953725,42053.0,42049.0,0.00016214]
[1646340529396,0.1580169,42055.0,42052.0,0.02745865]
[1646340529598,0.1580169,42055.0,42049.0,0.00016214]
[1646340529844,0.1580169,42055.0,42036.0,0.006]
[1646340529845,0.2370169,42055.0,42036.0,0.006]
[1646340530044,0.3941895,42054.0,42037.0,0.09850405]
[1646340530247,0.20059482,42057.0,42047.0,0.18885807]
[1646340530552,0.071355,42059.0,42051.0,0.02745865]
[1646340530745,0.071355,42059.0,42047.0,0.18885807]
[1646340530944,0.6,42058.0,42037.0,0.0002703]
[1646340531144,0.39044736,42057.0,42051.0,0.002]
[1646340531345,0.6,42058.0,42055.0,0.02745865]
[1646340531545,0.6,42058.0,42051.0,0.002]
[1646340531946,0.71627371,42058.0,42051.0,0.002]
[1646340532348,0.71627371,42058.0,42038.0,0.20210544]
[1646340532349,0.15675892,42049.0,42039.0,0.20409957]
[1646340532548,0.39044736,42056.0,42043.0,0.02745865]
[1646340532749,0.71627371,42058.0,42047.0,0.02745865]
[1646340532952,0.059479,42055.0,42046.0,0.000966]
[1646340533153,0.39044736,42054.0,42046.0,0.000966]
[1646340533349,0.10351382,42049.0,42046.0,0.000322]
[1646340533596,0.118983,42052.0,42043.0,0.006]
[1646340533996,0.059493,42050.0,42043.0,0.006]
[1646340534199,0.059493,42050.0,42047.0,0.02745865]
[1646340534398,0.059485,42051.0,42049.0,0.02745865]
[1646340534599,0.12468914,42050.0,42039.0,0.0006441]
[1646340534800,0.16606669,42047.0,42043.0,0.02745865]
[1646340535000,0.16606669,42047.0,42039.0,0.0006441]
[1646340535198,0.059491,42046.0,42039.0,0.007]
[1646340535400,0.18417914,42050.0,42039.0,0.007]
[1646340535600,0.12468914,42050.0,42039.0,0.007]
[1646340536400,0.15733229,42049.0,42035.0,0.00085959]
[1646340536600,0.362382,42047.0,42035.0,0.00057306]
[1646340536804,0.39044736,42048.0,42035.0,0.00028653]
[1646340536805,0.362382,42043.0,42035.0,0.00028653]
[1646340537001,0.362382,42043.0,42025.0,0.0021]
[1646340537002,0.198027,42037.0,42025.0,0.0021]
[1646340537267,0.13053005,42029.0,42025.0,0.0021]
[1646340537454,0.059512,42034.0,42027.0,7.164e-05]
[1646340537653,0.01188,42037.0,42027.0,7.164e-05]
[1646340537855,0.01188,42038.0,42027.0,7.164e-05]
[1646340538053,0.079,42042.0,42031.0,0.0005731]
[1646340538255,0.55588,42043.0,42031.0,0.00085965]
[1646340538458,0.11303771,42038.0,42031.0,0.00085965]
[1646340538655,0.11303771,42038.0,42031.0,0.00028655]
[1646340538859,0.079,42037.0,42025.0,0.0021]
[1646340539057,0.079,42037.0,42031.0,0.005]
[1646340539258,0.39044736,42036.0,42031.0,0.005]
[1646340539455,0.079,42034.0,42031.0,0.005]
[1646340539656,0.11303771,42038.0,42031.0,0.005]
[1646340539657,0.079,42032.0,42031.0,0.005]
[1646340539857,0.29253819,42032.0,42031.0,0.005]
[1646340540057,0.46603521,42032.0,42031.0,0.005]
[1646340540257,0.53062588,42032.0,42031.0,0.005]
[1646340540464,0.079,42028.0,42027.0,7.264e-05]
[1646340540761,0.079,42026.0,42025.0,0.0021]
[1646340541205,0.48132736,42030.0,42025.0,0.00217265]
[1646340541405,0.079,42030.0,42025.0,0.00217265]
[1646340541605,0.38703521,42032.0,42025.0,0.0022453]
[1646340541804,0.38703521,42032.0,42025.0,0.00231795]
[1646340541805,0.17349702,42032.0,42025.0,0.00231795]
[1646340542005,0.062514,42033.0,42025.0,0.00231795]
[1646340542209,0.003,42033.0,42025.0,0.00217265]
[1646340542409,0.079,42038.0,42029.0,0.02745865]
[1646340542604,0.46183236,42039.0,42025.0,0.0021]
[1646340542804,0.17881721,42038.0,42025.0,0.0021]